[Event "January 9 Early 2024"]
[Site "https://www.chess.com"]
[Date "2024.01.11"]
[Round "3"]
[White "Starozhilov, Leonid"]
[Black "Kanyamarala, Trisha"]
[Result "1-0"]
[Board "200"]
[TimeControl "180+1"]
[WhiteFideId "14106752"]
[BlackFideId "45004722"]
[WhiteElo "2769"]
[BlackElo "2505"]
[WhiteTeam "UKR"]
[BlackTeam "IRL"]
[WhiteClock "0:00:07"]
[BlackClock "0:00:01"]

1. e4 {[%clk 0:03:00]}  c5 {[%clk 0:02:53]} 2. Nf3 {[%clk 0:03:00]}  d6 {[%clk 0:02:52]} 3. Bb5+ {[%clk 0:02:57]}  Bd7 {[%clk 0:02:51]} 4. c4 {[%clk 0:02:57]}  Nf6 {[%clk 0:02:47]} 5. Nc3 {[%clk 0:02:57]}  a6 {[%clk 0:02:42]} 6. Bxd7+ {[%clk 0:02:56]}  Qxd7 {[%clk 0:02:39]} 7. d4 {[%clk 0:02:55]}  cxd4 {[%clk 0:02:37]} 8. Nxd4 {[%clk 0:02:56]}  Nc6 {[%clk 0:02:36]} 9. O-O {[%clk 0:02:56]}  e6 {[%clk 0:02:34]} 10. b3 {[%clk 0:02:52]}  Be7 {[%clk 0:02:33]} 11. Ba3 {[%clk 0:02:50]}  O-O {[%clk 0:02:21]} 12. Nxc6 {[%clk 0:02:50]}  Qxc6 {[%clk 0:02:17]} 13. e5 {[%clk 0:02:50]}  Ne8 {[%clk 0:02:08]} 14. Qe2 {[%clk 0:02:39]}  Qc7 {[%clk 0:01:41]} 15. Rad1 {[%clk 0:02:32]}  b5 {[%clk 0:01:25]} 16. exd6 {[%clk 0:01:55]}  Bxd6 {[%clk 0:01:21]} 17. Bxd6 {[%clk 0:01:40]}  Nxd6 {[%clk 0:01:21]} 18. Qe5 {[%clk 0:01:40]}  Rfd8 {[%clk 0:01:18]} 19. c5 {[%clk 0:01:25]}  Ne8 {[%clk 0:00:26]} 20. Qxc7 {[%clk 0:01:21]}  Nxc7 {[%clk 0:00:27]} 21. b4 {[%clk 0:01:21]}  Kf8 {[%clk 0:00:25]} 22. f3 {[%clk 0:01:02]}  Ke7 {[%clk 0:00:24]} 23. Kf2 {[%clk 0:00:55]}  a5 {[%clk 0:00:24]} 24. a3 {[%clk 0:00:50]}  axb4 {[%clk 0:00:22]} 25. axb4 {[%clk 0:00:51]}  Ra3 {[%clk 0:00:18]} 26. Rxd8 {[%clk 0:00:48]}  Kxd8 {[%clk 0:00:18]} 27. Rd1+ {[%clk 0:00:47]}  Ke7 {[%clk 0:00:18]} 28. Rd3 {[%clk 0:00:37]}  Ke8 {[%clk 0:00:09]} 29. Ke3 {[%clk 0:00:35]}  Rb3 {[%clk 0:00:06]} 30. c6 {[%clk 0:00:18]}  Rxb4 {[%clk 0:00:04]} 31. Rd7 {[%clk 0:00:19]}  Rc4 {[%clk 0:00:02]} 32. Rxc7 {[%clk 0:00:13]}  Rxc3+ {[%clk 0:00:02]} 33. Kd4 {[%clk 0:00:14]}  Rc4+ {[%clk 0:00:02]} 34. Ke5 {[%clk 0:00:14]}  b4 {[%clk 0:00:01]} 35. Kd6 {[%clk 0:00:13]}  Rd4+ {[%clk 0:00:01]} 36. Kc5 {[%clk 0:00:13]}  Rd2 {[%clk 0:00:01]} 37. Rb7 {[%clk 0:00:11]}  Rc2+ {[%clk 0:00:01]} 38. Kxb4 {[%clk 0:00:09]}  Rxc6 {[%clk 0:00:01]} 39. Kb3 {[%clk 0:00:07]} 1-0

[Event "January 9 Early 2024"]
[Site "https://www.chess.com"]
[Date "2024.01.11"]
[Round "3"]
[White "Teillet, Benoit"]
[Black "Tifferet, Shakked"]
[Result "0-1"]
[Board "202"]
[TimeControl "180+1"]
[WhiteFideId "616591"]
[BlackFideId "2811529"]
[WhiteElo "2268"]
[BlackElo "2496"]
[WhiteTeam "FRA"]
[BlackTeam "ISR"]
[WhiteClock "0:00:05"]
[BlackClock "0:00:12"]

1. b4 {[%clk 0:03:00]}  b5 {[%clk 0:02:56]} 2. Bb2 {[%clk 0:03:00]}  Bb7 {[%clk 0:02:56]} 3. e3 {[%clk 0:03:01]}  a6 {[%clk 0:02:55]} 4. Nf3 {[%clk 0:03:00]}  e6 {[%clk 0:02:55]} 5. a3 {[%clk 0:02:59]}  Nf6 {[%clk 0:02:55]} 6. Be2 {[%clk 0:02:59]}  Be7 {[%clk 0:02:56]} 7. O-O {[%clk 0:02:59]}  O-O {[%clk 0:02:56]} 8. c4 {[%clk 0:02:59]}  bxc4 {[%clk 0:02:54]} 9. Bxc4 {[%clk 0:02:58]}  c5 {[%clk 0:02:45]} 10. bxc5 {[%clk 0:02:55]}  Bxc5 {[%clk 0:02:46]} 11. d4 {[%clk 0:02:55]}  Be7 {[%clk 0:02:43]} 12. Nbd2 {[%clk 0:02:54]}  d5 {[%clk 0:02:38]} 13. Bd3 {[%clk 0:02:54]}  Nbd7 {[%clk 0:02:38]} 14. Rc1 {[%clk 0:02:46]}  Rb8 {[%clk 0:02:35]} 15. Nb3 {[%clk 0:02:21]}  Qb6 {[%clk 0:02:32]} 16. Rb1 {[%clk 0:02:15]}  Bc6 {[%clk 0:02:27]} 17. Nbd2 {[%clk 0:02:08]}  Qa5 {[%clk 0:02:24]} 18. Ne5 {[%clk 0:02:04]}  Ba4 {[%clk 0:02:06]} 19. Qe2 {[%clk 0:01:56]}  Nxe5 {[%clk 0:02:02]} 20. dxe5 {[%clk 0:01:56]}  Nd7 {[%clk 0:02:03]} 21. Nf3 {[%clk 0:01:45]}  Rfc8 {[%clk 0:01:58]} 22. Nd4 {[%clk 0:01:40]}  Nc5 {[%clk 0:01:55]} 23. Rfc1 {[%clk 0:01:14]}  Nxd3 {[%clk 0:01:55]} 24. Rxc8+ {[%clk 0:01:08]}  Rxc8 {[%clk 0:01:56]} 25. Qxd3 {[%clk 0:01:06]}  g6 {[%clk 0:01:30]} 26. h3 {[%clk 0:01:05]}  Bc5 {[%clk 0:01:23]} 27. Nb3 {[%clk 0:00:58]}  Bxb3 {[%clk 0:01:03]} 28. Qxb3 {[%clk 0:00:58]}  Qb6 {[%clk 0:00:51]} 29. Qxb6 {[%clk 0:00:46]}  Bxb6 {[%clk 0:00:52]} 30. Bc1 {[%clk 0:00:32]}  Bc7 {[%clk 0:00:36]} 31. f4 {[%clk 0:00:28]}  Ba5 {[%clk 0:00:32]} 32. Kf2 {[%clk 0:00:26]}  Rc2+ {[%clk 0:00:28]} 33. Kf3 {[%clk 0:00:26]}  h5 {[%clk 0:00:27]} 34. g4 {[%clk 0:00:26]}  h4 {[%clk 0:00:24]} 35. g5 {[%clk 0:00:25]}  Be1 {[%clk 0:00:20]} 36. a4 {[%clk 0:00:18]}  Rf2+ {[%clk 0:00:19]} 37. Kg4 {[%clk 0:00:14]}  Kg7 {[%clk 0:00:15]} 38. Rb2 {[%clk 0:00:09]}  Rf1 {[%clk 0:00:13]} 39. Rc2 {[%clk 0:00:08]}  Rg1+ {[%clk 0:00:12]} 40. Kf3 {[%clk 0:00:08]}  Rg3+ {[%clk 0:00:12]} 41. Ke2 {[%clk 0:00:09]}  Bb4 {[%clk 0:00:13]} 42. Rc6 {[%clk 0:00:07]}  a5 {[%clk 0:00:12]} 43. Bb2 {[%clk 0:00:06]}  Rg2+ {[%clk 0:00:12]} 44. Kd3 {[%clk 0:00:05]}  Rd2# {[%clk 0:00:12]} 0-1

[Event "January 9 Early 2024"]
[Site "https://www.chess.com"]
[Date "2024.01.11"]
[Round "3"]
[White "Abdulrahman Mohammad, Al Taher"]
[Black "Xie, Bryan"]
[Result "0-1"]
[Board "203"]
[TimeControl "180+1"]
[WhiteFideId "9310258"]
[BlackFideId "30941296"]
[WhiteElo "2238"]
[BlackElo "2428"]
[WhiteTeam "UAE"]
[BlackTeam "USA"]
[WhiteClock "0:00:02"]
[BlackClock "0:00:03"]

1. d4 {[%clk 0:03:00]}  Nf6 {[%clk 0:02:59]} 2. c4 {[%clk 0:03:01]}  e6 {[%clk 0:02:58]} 3. Nc3 {[%clk 0:03:01]}  Bb4 {[%clk 0:02:58]} 4. e3 {[%clk 0:03:01]}  O-O {[%clk 0:02:58]} 5. Bd3 {[%clk 0:03:01]}  d5 {[%clk 0:02:56]} 6. cxd5 {[%clk 0:03:01]}  exd5 {[%clk 0:02:57]} 7. Ne2 {[%clk 0:03:01]}  c5 {[%clk 0:02:56]} 8. O-O {[%clk 0:03:01]}  Bxc3 {[%clk 0:02:55]} 9. bxc3 {[%clk 0:03:01]}  Nc6 {[%clk 0:02:52]} 10. a4 {[%clk 0:02:54]}  c4 {[%clk 0:02:49]} 11. Bc2 {[%clk 0:02:54]}  Re8 {[%clk 0:02:49]} 12. Ng3 {[%clk 0:02:51]}  b6 {[%clk 0:02:17]} 13. f3 {[%clk 0:02:50]}  h5 {[%clk 0:02:13]} 14. e4 {[%clk 0:02:10]}  h4 {[%clk 0:02:11]} 15. Nh1 {[%clk 0:02:06]}  dxe4 {[%clk 0:01:57]} 16. fxe4 {[%clk 0:02:06]}  Nxe4 {[%clk 0:01:57]} 17. Bxe4 {[%clk 0:01:57]}  Rxe4 {[%clk 0:01:58]} 18. Qf3 {[%clk 0:01:57]}  Qe8 {[%clk 0:01:45]} 19. Nf2 {[%clk 0:01:49]}  Re1 {[%clk 0:01:29]} 20. Bd2 {[%clk 0:01:25]}  Rxa1 {[%clk 0:01:27]} 21. Rxa1 {[%clk 0:01:26]}  Bb7 {[%clk 0:01:25]} 22. Re1 {[%clk 0:01:23]}  Qd7 {[%clk 0:01:20]} 23. Qf4 {[%clk 0:01:19]}  Re8 {[%clk 0:01:06]} 24. Qxh4 {[%clk 0:01:08]}  Rxe1+ {[%clk 0:00:58]} 25. Bxe1 {[%clk 0:01:09]}  Qe8 {[%clk 0:00:58]} 26. Kf1 {[%clk 0:00:51]}  Na5 {[%clk 0:00:42]} 27. Qg3 {[%clk 0:00:37]}  Qxa4 {[%clk 0:00:19]} 28. Ng4 {[%clk 0:00:20]}  Qc6 {[%clk 0:00:16]} 29. Bd2 {[%clk 0:00:20]}  Nb3 {[%clk 0:00:11]} 30. Nh6+ {[%clk 0:00:20]}  Kh7 {[%clk 0:00:08]} 31. Nf5 {[%clk 0:00:18]}  Nxd2+ {[%clk 0:00:08]} 32. Ke1 {[%clk 0:00:14]}  Qe4+ {[%clk 0:00:06]} 33. Kxd2 {[%clk 0:00:02]}  Qxf5 {[%clk 0:00:06]} 34. Qh4+ {[%clk 0:00:02]}  Kg6 {[%clk 0:00:03]} 0-1

[Event "January 9 Early 2024"]
[Site "https://www.chess.com"]
[Date "2024.01.11"]
[Round "3"]
[White "Goncalves, Samuel Jesus P"]
[Black "Zhu, Jiner"]
[Result "0-1"]
[Board "205"]
[TimeControl "180+1"]
[WhiteFideId "1945130"]
[BlackFideId "8608059"]
[WhiteElo "2424"]
[BlackElo "2625"]
[WhiteTeam "POR"]
[BlackTeam "CHN"]
[WhiteClock "0:00:09"]
[BlackClock "0:00:14"]

1. Nf3 {[%clk 0:03:00]}  Nf6 {[%clk 0:02:59]} 2. g3 {[%clk 0:03:01]}  g6 {[%clk 0:02:59]} 3. Bg2 {[%clk 0:03:02]}  Bg7 {[%clk 0:03:00]} 4. O-O {[%clk 0:03:02]}  O-O {[%clk 0:03:00]} 5. d4 {[%clk 0:03:03]}  d5 {[%clk 0:02:59]} 6. c4 {[%clk 0:03:03]}  c6 {[%clk 0:03:00]} 7. Ne5 {[%clk 0:03:03]}  Nbd7 {[%clk 0:02:57]} 8. Nc3 {[%clk 0:02:49]}  dxc4 {[%clk 0:02:56]} 9. Nxc4 {[%clk 0:02:47]}  Nb6 {[%clk 0:02:56]} 10. Ne5 {[%clk 0:02:47]}  Be6 {[%clk 0:02:44]} 11. b3 {[%clk 0:02:35]}  Nfd7 {[%clk 0:02:39]} 12. Nf3 {[%clk 0:02:33]}  c5 {[%clk 0:02:38]} 13. Bb2 {[%clk 0:02:29]}  Rc8 {[%clk 0:02:24]} 14. e3 {[%clk 0:02:02]}  Bg4 {[%clk 0:02:21]} 15. Rc1 {[%clk 0:01:46]}  cxd4 {[%clk 0:02:17]} 16. exd4 {[%clk 0:01:47]}  Nf6 {[%clk 0:02:13]} 17. h3 {[%clk 0:01:39]}  Bf5 {[%clk 0:02:12]} 18. Re1 {[%clk 0:01:32]}  Nfd5 {[%clk 0:02:10]} 19. Ne4 {[%clk 0:01:21]}  Rxc1 {[%clk 0:01:59]} 20. Qxc1 {[%clk 0:01:22]}  Qc8 {[%clk 0:01:53]} 21. Qxc8 {[%clk 0:01:06]}  Rxc8 {[%clk 0:01:54]} 22. g4 {[%clk 0:01:07]}  Bxe4 {[%clk 0:01:51]} 23. Rxe4 {[%clk 0:01:07]}  Rc2 {[%clk 0:01:51]} 24. Ba3 {[%clk 0:01:07]}  e6 {[%clk 0:01:45]} 25. Bc5 {[%clk 0:00:59]}  Rxa2 {[%clk 0:01:39]} 26. Ne5 {[%clk 0:01:00]}  Bf8 {[%clk 0:01:25]} 27. b4 {[%clk 0:00:51]}  Na4 {[%clk 0:01:02]} 28. Nd7 {[%clk 0:00:46]}  Bxc5 {[%clk 0:01:00]} 29. dxc5 {[%clk 0:00:47]}  Nac3 {[%clk 0:00:58]} 30. Re1 {[%clk 0:00:40]}  Rb2 {[%clk 0:00:56]} 31. Ra1 {[%clk 0:00:36]}  a6 {[%clk 0:00:56]} 32. c6 {[%clk 0:00:33]}  bxc6 {[%clk 0:00:48]} 33. Rxa6 {[%clk 0:00:32]}  Nxb4 {[%clk 0:00:40]} 34. Ra8+ {[%clk 0:00:21]}  Kg7 {[%clk 0:00:40]} 35. Ra7 {[%clk 0:00:22]}  Nd3 {[%clk 0:00:36]} 36. Bxc6 {[%clk 0:00:19]}  Rxf2 {[%clk 0:00:35]} 37. Ra3 {[%clk 0:00:19]}  Rc2 {[%clk 0:00:24]} 38. Bf3 {[%clk 0:00:14]}  Rc1+ {[%clk 0:00:21]} 39. Kh2 {[%clk 0:00:13]}  Nf4 {[%clk 0:00:19]} 40. Kg3 {[%clk 0:00:13]}  Nfd5 {[%clk 0:00:16]} 41. Ne5 {[%clk 0:00:13]}  Re1 {[%clk 0:00:15]} 42. Nd3 {[%clk 0:00:11]}  Re3 {[%clk 0:00:15]} 43. Nf2 {[%clk 0:00:09]}  Ne2+ {[%clk 0:00:14]} 0-1

[Event "January 9 Early 2024"]
[Site "https://www.chess.com"]
[Date "2024.01.11"]
[Round "3"]
[White "Kostiukov, Alexandr"]
[Black "Wadsworth, Matthew J"]
[Result "0-1"]
[Board "207"]
[TimeControl "180+1"]
[WhiteFideId "14108100"]
[BlackFideId "415804"]
[WhiteElo "2298"]
[BlackElo "2630"]
[WhiteTeam "UKR"]
[BlackTeam "ENG"]
[WhiteClock "0:00:04"]
[BlackClock "0:00:12"]

1. g3 {[%clk 0:03:00]}  h5 {[%clk 0:02:57]} 2. h4 {[%clk 0:03:00]}  d5 {[%clk 0:02:55]} 3. Bg2 {[%clk 0:03:00]}  c6 {[%clk 0:02:54]} 4. d3 {[%clk 0:02:58]}  Nf6 {[%clk 0:02:53]} 5. e4 {[%clk 0:02:58]}  dxe4 {[%clk 0:02:53]} 6. dxe4 {[%clk 0:02:59]}  Qxd1+ {[%clk 0:02:52]} 7. Kxd1 {[%clk 0:03:00]}  Nbd7 {[%clk 0:02:32]} 8. f3 {[%clk 0:02:54]}  Nc5 {[%clk 0:02:28]} 9. Be3 {[%clk 0:02:51]}  e5 {[%clk 0:02:28]} 10. Nd2 {[%clk 0:02:50]}  Be6 {[%clk 0:02:27]} 11. Bh3 {[%clk 0:02:50]}  O-O-O {[%clk 0:02:22]} 12. Ke2 {[%clk 0:02:44]}  Be7 {[%clk 0:02:07]} 13. Bxc5 {[%clk 0:02:13]}  Bxc5 {[%clk 0:02:07]} 14. Bxe6+ {[%clk 0:02:13]}  fxe6 {[%clk 0:02:07]} 15. Nc4 {[%clk 0:02:12]}  Nd7 {[%clk 0:01:20]} 16. Nh3 {[%clk 0:02:01]}  b5 {[%clk 0:01:20]} 17. Na5 {[%clk 0:01:57]}  Kc7 {[%clk 0:01:16]} 18. Ng5 {[%clk 0:01:55]}  Rhe8 {[%clk 0:01:05]} 19. Nb3 {[%clk 0:01:50]}  Bb6 {[%clk 0:01:04]} 20. a4 {[%clk 0:01:49]}  a6 {[%clk 0:01:03]} 21. axb5 {[%clk 0:01:38]}  axb5 {[%clk 0:01:03]} 22. Rhd1 {[%clk 0:01:30]}  c5 {[%clk 0:00:49]} 23. c4 {[%clk 0:01:03]}  bxc4 {[%clk 0:00:44]} 24. Nd2 {[%clk 0:01:03]}  Nb8 {[%clk 0:00:40]} 25. Nxc4 {[%clk 0:01:03]}  Rxd1 {[%clk 0:00:38]} 26. Kxd1 {[%clk 0:00:57]}  Nc6 {[%clk 0:00:36]} 27. Ra6 {[%clk 0:00:47]}  Ba7 {[%clk 0:00:36]} 28. Na5 {[%clk 0:00:39]}  Nxa5 {[%clk 0:00:24]} 29. Rxa7+ {[%clk 0:00:39]}  Nb7 {[%clk 0:00:24]} 30. Ra6 {[%clk 0:00:37]}  Nd6 {[%clk 0:00:24]} 31. Ra7+ {[%clk 0:00:37]}  Kc6 {[%clk 0:00:23]} 32. Rxg7 {[%clk 0:00:37]}  Nc4 {[%clk 0:00:23]} 33. Kc1 {[%clk 0:00:35]}  Rb8 {[%clk 0:00:22]} 34. Nxe6 {[%clk 0:00:16]}  Rxb2 {[%clk 0:00:19]} 35. f4 {[%clk 0:00:16]}  exf4 {[%clk 0:00:18]} 36. gxf4 {[%clk 0:00:17]}  Re2 {[%clk 0:00:17]} 37. e5 {[%clk 0:00:16]}  Kd5 {[%clk 0:00:16]} 38. Ng5 {[%clk 0:00:15]}  Kd4 {[%clk 0:00:15]} 39. Rd7+ {[%clk 0:00:12]}  Kc3 {[%clk 0:00:15]} 40. Kd1 {[%clk 0:00:12]}  Re3 {[%clk 0:00:11]} 41. Rd8 {[%clk 0:00:06]}  Nb2+ {[%clk 0:00:11]} 42. Kc1 {[%clk 0:00:04]}  Re1+ {[%clk 0:00:12]} 0-1

[Event "January 9 Early 2024"]
[Site "https://www.chess.com"]
[Date "2024.01.11"]
[Round "3"]
[White "Durarbayli, Vasif"]
[Black "Nepomniachtchi, Ian"]
[Result "0-1"]
[Board "208"]
[TimeControl "180+1"]
[WhiteFideId "13402935"]
[BlackFideId "4168119"]
[WhiteElo "2796"]
[BlackElo "3127"]
[WhiteTeam "AZE"]
[BlackTeam "RUS"]
[WhiteClock "0:00:02"]
[BlackClock "0:00:33"]

1. e4 {[%clk 0:03:00]}  c5 {[%clk 0:02:59]} 2. Nf3 {[%clk 0:03:01]}  d6 {[%clk 0:03:00]} 3. d4 {[%clk 0:03:01]}  cxd4 {[%clk 0:03:01]} 4. Nxd4 {[%clk 0:03:01]}  Nf6 {[%clk 0:03:02]} 5. Nc3 {[%clk 0:03:02]}  a6 {[%clk 0:03:02]} 6. Be2 {[%clk 0:03:02]}  e5 {[%clk 0:03:02]} 7. Nb3 {[%clk 0:03:03]}  Be7 {[%clk 0:03:02]} 8. Be3 {[%clk 0:03:03]}  O-O {[%clk 0:03:00]} 9. g4 {[%clk 0:03:02]}  Be6 {[%clk 0:03:00]} 10. g5 {[%clk 0:03:02]}  Nfd7 {[%clk 0:03:00]} 11. h4 {[%clk 0:03:02]}  Nb6 {[%clk 0:02:59]} 12. f4 {[%clk 0:03:00]}  exf4 {[%clk 0:02:57]} 13. Bxf4 {[%clk 0:03:01]}  Nc6 {[%clk 0:02:57]} 14. Qd2 {[%clk 0:02:50]}  Rc8 {[%clk 0:02:57]} 15. O-O-O {[%clk 0:02:50]}  Ne5 {[%clk 0:02:56]} 16. h5 {[%clk 0:02:31]}  Nbc4 {[%clk 0:02:54]} 17. Bxc4 {[%clk 0:02:31]}  Nxc4 {[%clk 0:02:54]} 18. Qg2 {[%clk 0:02:32]}  Qc7 {[%clk 0:02:39]} 19. Rd3 {[%clk 0:02:32]}  Ne5 {[%clk 0:02:37]} 20. Rg3 {[%clk 0:02:27]}  a5 {[%clk 0:02:30]} 21. Kb1 {[%clk 0:02:16]}  b5 {[%clk 0:02:23]} 22. Nd4 {[%clk 0:02:03]}  b4 {[%clk 0:02:17]} 23. Nd5 {[%clk 0:02:04]}  Bxd5 {[%clk 0:02:17]} 24. exd5 {[%clk 0:02:05]}  Qc4 {[%clk 0:02:02]} 25. Nf5 {[%clk 0:01:52]}  Rce8 {[%clk 0:02:00]} 26. Bxe5 {[%clk 0:01:06]}  dxe5 {[%clk 0:02:01]} 27. Rg4 {[%clk 0:01:07]}  Qc5 {[%clk 0:01:38]} 28. Qe4 {[%clk 0:01:05]}  Bd8 {[%clk 0:01:38]} 29. Rf1 {[%clk 0:00:49]}  a4 {[%clk 0:01:35]} 30. Nh6+ {[%clk 0:00:42]}  Kh8 {[%clk 0:01:20]} 31. Nxf7+ {[%clk 0:00:41]}  Kg8 {[%clk 0:01:19]} 32. g6 {[%clk 0:00:34]}  h6 {[%clk 0:01:15]} 33. Qxb4 {[%clk 0:00:24]}  Qxd5 {[%clk 0:01:10]} 34. Re4 {[%clk 0:00:20]}  Bf6 {[%clk 0:01:02]} 35. Qc4 {[%clk 0:00:13]}  Qxc4 {[%clk 0:00:57]} 36. Rxc4 {[%clk 0:00:14]}  a3 {[%clk 0:00:58]} 37. b4 {[%clk 0:00:10]}  e4 {[%clk 0:00:56]} 38. Re1 {[%clk 0:00:11]}  e3 {[%clk 0:00:56]} 39. c3 {[%clk 0:00:07]}  Re7 {[%clk 0:00:54]} 40. Re2 {[%clk 0:00:05]}  Rfe8 {[%clk 0:00:51]} 41. Kc2 {[%clk 0:00:05]}  Rd7 {[%clk 0:00:49]} 42. Rf4 {[%clk 0:00:02]}  Re6 {[%clk 0:00:36]} 43. Nxh6+ {[%clk 0:00:02]}  gxh6 {[%clk 0:00:35]} 44. Rxf6 {[%clk 0:00:01]}  Rxf6 {[%clk 0:00:35]} 45. Rxe3 {[%clk 0:00:02]}  Rf5 {[%clk 0:00:35]} 46. Kb3 {[%clk 0:00:02]}  Rxh5 {[%clk 0:00:35]} 47. Re6 {[%clk 0:00:01]}  Rg5 {[%clk 0:00:35]} 48. Rc6 {[%clk 0:00:02]}  h5 {[%clk 0:00:34]} 49. c4 {[%clk 0:00:02]}  h4 {[%clk 0:00:33]} 50. b5 {[%clk 0:00:01]}  h3 {[%clk 0:00:33]} 51. Re6 {[%clk 0:00:02]}  h2 {[%clk 0:00:33]} 0-1

[Event "January 9 Early 2024"]
[Site "https://www.chess.com"]
[Date "2024.01.11"]
[Round "3"]
[White "Parfenov, Viktor N."]
[Black "Ghosh, Chanchal Kumer"]
[Result "1-0"]
[Board "212"]
[TimeControl "180+1"]
[WhiteFideId "4165969"]
[BlackFideId "10201858"]
[WhiteElo "2535"]
[BlackElo "2055"]
[WhiteTeam "RUS"]
[BlackTeam "BAN"]
[WhiteClock "0:00:06"]
[BlackClock "0:00:06"]

1. d4 {[%clk 0:03:00]}  d5 {[%clk 0:02:59]} 2. Bf4 {[%clk 0:02:59]}  e6 {[%clk 0:02:58]} 3. e3 {[%clk 0:02:58]}  Nf6 {[%clk 0:02:59]} 4. Nf3 {[%clk 0:02:56]}  Bd6 {[%clk 0:03:00]} 5. Bg3 {[%clk 0:02:56]}  c5 {[%clk 0:02:58]} 6. dxc5 {[%clk 0:02:52]}  Bxg3 {[%clk 0:02:55]} 7. hxg3 {[%clk 0:02:52]}  Qa5+ {[%clk 0:02:52]} 8. Nbd2 {[%clk 0:02:52]}  Qxc5 {[%clk 0:02:52]} 9. Rc1 {[%clk 0:02:50]}  Nc6 {[%clk 0:02:50]} 10. a3 {[%clk 0:02:50]}  a5 {[%clk 0:02:39]} 11. c4 {[%clk 0:02:48]}  a4 {[%clk 0:02:20]} 12. cxd5 {[%clk 0:02:42]}  Qxd5 {[%clk 0:02:19]} 13. Bc4 {[%clk 0:02:42]}  Qd6 {[%clk 0:02:13]} 14. Qe2 {[%clk 0:02:39]}  O-O {[%clk 0:02:08]} 15. Bd3 {[%clk 0:02:30]}  Rd8 {[%clk 0:02:06]} 16. Bb1 {[%clk 0:02:27]}  Ne5 {[%clk 0:02:04]} 17. Nxe5 {[%clk 0:02:22]}  Qxe5 {[%clk 0:02:04]} 18. Nc4 {[%clk 0:02:21]}  Qg5 {[%clk 0:01:55]} 19. O-O {[%clk 0:01:58]}  b5 {[%clk 0:01:43]} 20. Nb6 {[%clk 0:01:39]}  Rb8 {[%clk 0:01:39]} 21. Nxc8 {[%clk 0:01:38]}  Rdxc8 {[%clk 0:01:36]} 22. Bd3 {[%clk 0:01:35]}  Ng4 {[%clk 0:01:26]} 23. Rfd1 {[%clk 0:00:38]}  Qh5 {[%clk 0:00:57]} 24. Rxc8+ {[%clk 0:00:36]}  Rxc8 {[%clk 0:00:58]} 25. Qf3 {[%clk 0:00:30]}  g6 {[%clk 0:00:46]} 26. Be4 {[%clk 0:00:17]}  Rc5 {[%clk 0:00:16]} 27. Bd3 {[%clk 0:00:16]}  Rd5 {[%clk 0:00:16]} 28. Rd2 {[%clk 0:00:11]}  Qh2+ {[%clk 0:00:12]} 29. Kf1 {[%clk 0:00:11]}  h5 {[%clk 0:00:13]} 30. Ke2 {[%clk 0:00:10]}  Qh1 {[%clk 0:00:11]} 31. Be4 {[%clk 0:00:09]}  Rxd2+ {[%clk 0:00:11]} 32. Kxd2 {[%clk 0:00:09]}  Qa1 {[%clk 0:00:10]} 33. Qd1 {[%clk 0:00:09]}  Qxb2+ {[%clk 0:00:11]} 34. Bc2 {[%clk 0:00:09]}  Nxf2 {[%clk 0:00:10]} 35. Qe2 {[%clk 0:00:09]}  Ne4+ {[%clk 0:00:08]} 36. Kd3 {[%clk 0:00:10]}  f5 {[%clk 0:00:06]} 37. Qe1 {[%clk 0:00:06]} 1-0

[Event "January 9 Early 2024"]
[Site "https://www.chess.com"]
[Date "2024.01.11"]
[Round "3"]
[White "Rakhmatullaev, Almas"]
[Black "Mortazavi, Ali"]
[Result "1-0"]
[Board "220"]
[TimeControl "180+1"]
[WhiteFideId "14205793"]
[BlackFideId "401323"]
[WhiteElo "2828"]
[BlackElo "2552"]
[WhiteTeam "UZB"]
[BlackTeam "ENG"]
[WhiteClock "0:00:13"]
[BlackClock "0:00:08"]

1. e4 {[%clk 0:03:00]}  c6 {[%clk 0:02:59]} 2. d4 {[%clk 0:02:59]}  d5 {[%clk 0:02:59]} 3. exd5 {[%clk 0:03:00]}  cxd5 {[%clk 0:03:00]} 4. c4 {[%clk 0:03:00]}  Nf6 {[%clk 0:03:00]} 5. Nc3 {[%clk 0:03:00]}  g6 {[%clk 0:03:01]} 6. Nf3 {[%clk 0:02:59]}  Bg7 {[%clk 0:03:01]} 7. cxd5 {[%clk 0:02:59]}  Nxd5 {[%clk 0:03:01]} 8. Bc4 {[%clk 0:02:57]}  Nb6 {[%clk 0:03:01]} 9. Bb3 {[%clk 0:02:55]}  O-O {[%clk 0:03:02]} 10. h3 {[%clk 0:02:54]}  Nc6 {[%clk 0:03:01]} 11. Be3 {[%clk 0:02:54]}  Nb4 {[%clk 0:02:54]} 12. O-O {[%clk 0:02:51]}  N4d5 {[%clk 0:02:54]} 13. Rc1 {[%clk 0:02:48]}  Bf5 {[%clk 0:02:46]} 14. Re1 {[%clk 0:02:39]}  Nxe3 {[%clk 0:02:41]} 15. fxe3 {[%clk 0:02:38]}  Rc8 {[%clk 0:02:38]} 16. e4 {[%clk 0:02:35]}  Bd7 {[%clk 0:02:38]} 17. e5 {[%clk 0:02:30]}  e6 {[%clk 0:02:05]} 18. Qd2 {[%clk 0:02:06]}  Bc6 {[%clk 0:01:58]} 19. Ng5 {[%clk 0:02:05]}  Nd5 {[%clk 0:01:32]} 20. Nce4 {[%clk 0:01:58]}  h6 {[%clk 0:01:22]} 21. Nf3 {[%clk 0:01:54]}  Rc7 {[%clk 0:01:17]} 22. Bxd5 {[%clk 0:01:33]}  Bxd5 {[%clk 0:01:17]} 23. Rxc7 {[%clk 0:01:30]}  Qxc7 {[%clk 0:01:18]} 24. Nf6+ {[%clk 0:01:30]}  Kh8 {[%clk 0:01:02]} 25. Nxd5 {[%clk 0:01:27]}  exd5 {[%clk 0:01:02]} 26. Rc1 {[%clk 0:01:15]}  Qb6 {[%clk 0:01:02]} 27. Rc5 {[%clk 0:01:03]}  Rd8 {[%clk 0:01:02]} 28. Qc2 {[%clk 0:00:56]}  Bf8 {[%clk 0:00:57]} 29. Rc3 {[%clk 0:00:54]}  Kg7 {[%clk 0:00:47]} 30. Rc7 {[%clk 0:00:50]}  Re8 {[%clk 0:00:38]} 31. Kh1 {[%clk 0:00:37]}  Re6 {[%clk 0:00:38]} 32. a3 {[%clk 0:00:32]}  Rc6 {[%clk 0:00:38]} 33. Rxc6 {[%clk 0:00:31]}  bxc6 {[%clk 0:00:33]} 34. e6 {[%clk 0:00:26]}  fxe6 {[%clk 0:00:30]} 35. Ne5 {[%clk 0:00:26]}  Kh8 {[%clk 0:00:08]} 36. Qxg6 {[%clk 0:00:23]}  Bg7 {[%clk 0:00:08]} 37. Nf7+ {[%clk 0:00:19]}  Kg8 {[%clk 0:00:09]} 38. Nxh6+ {[%clk 0:00:20]}  Kh8 {[%clk 0:00:10]} 39. Nf7+ {[%clk 0:00:18]}  Kg8 {[%clk 0:00:10]} 40. Ng5 {[%clk 0:00:18]}  Qxd4 {[%clk 0:00:08]} 41. Qf7+ {[%clk 0:00:12]}  Kh8 {[%clk 0:00:08]} 42. Qe8+ {[%clk 0:00:13]} 1-0